[Event "Cabo Verde Open 2022"]
[Site "Mindelo-S. Vicente"]
[Date "2022.04.30"]
[Round "8.6"]
[White "Lesbros, Bernard"]
[Black "Varela La Madrid, Tilsia Carolina"]
[Result "0-1"]
[ECO "D65"]
[WhiteElo "1865"]
[BlackElo "2097"]
[Annotator "TA"]
[PlyCount "98"]
[EventDate "2022.04.22"]
[EventType "swiss"]
[SourceTitle "playchess.com"]
[Source "ChessBase"]
[SourceQuality "1"]
[TimeControl "40/5400+30:1800+30"]

{[%evp 23,98,28,20,-26,-30,-35,0,-35,-9,-35,-34,-33,-27,-35,-13,-18,0,-16,0,-42,20,-47,-42,-38,-10,-61,-59,-64,-43,-60,-64,-72,-75,-173,-155,-216,-207,-248,-198,-302,-274,-300,-310,-294,-289,-294,-309,-410,-249,-279,-297,-383,-364,-382,-375,-377,-365,-373,-366,-359,-356,-347,-337,-445,-450,-485,-475,-470,-460,-482,-440,-506,-448,-670,-668,-596,-597]} 1. Nf3 {[%emt 0:00:06]} d5 {[%emt 0:00:11]} 2. d4 {[%emt 0:00:15]} Nf6 {[%emt 0:00:17]} 3. c4 {[%emt 0:00:05]} e6 {[%emt 0:00:08]} 4. Nc3 {[%emt 0:03:20]} a6 {[%emt 0:01:48]} 5. Bg5 {[%emt 0:02:17]} Be7 {[%emt 0:00:16]} 6. e3 {[%emt 0:01:32]} O-O {[%emt 0:00:39]} 7. Rc1 {[%emt 0:00:48]} Nbd7 {[%emt 0:00:32]} 8. cxd5 {[%emt 0:02:18]} exd5 {[%emt 0:01:11]} 9. Bd3 {[%emt 0:02:22]} c6 {[%emt 0:00:50]} 10. Qc2 {[%emt 0:01:37]} Re8 {[%emt 0:01:29]} 11. O-O {[%emt 0:01:58]} h6 {[%emt 0:02:14]} 12. Bh4 {[%emt 0:03:29]} Ne4 {[%emt 0:02:08]} 13. Bg3 {[%emt 0:08:40] D65: Queen's Gambit Declined: Classical: 7 Rc1 c6 8 Qc2 a6 9 cxd5.} (13. Nxe4 $2 dxe4 14. Bxe4 (14. Bxe7 $2 Qxe7 15. Bxe4 Qxe4 $19) 14... Bxh4 $19) (13. Bxe4 $142 Bxh4 14. Bh7+ Kh8 15. Nxh4 Qxh4 16. Bd3) 13... Nxg3 $11 {[%emt 0:00:30]} 14. hxg3 {[%emt 0:00:16]} Bf6 {[%emt 0:01:42] [#]} 15. Ne2 $146 {[%emt 0:06:36][%cal Bc3e2,Be2f4,Bf4d3,Bd3e5][%mdl 32] The position is equal.} ({Predecessor:} 15. b4 Qe7 16. Rb1 Nf8 17. a4 Bd7 18. b5 axb5 19. axb5 Rec8 20. b6 Ra3 21. Ra1 {½-½ (41) Kantor,D (1943)-Hotzi,G (2052) Hungary 2009}) 15... Nf8 {[%emt 0:00:43]} 16. Bf5 {[%emt 0:02:29]} Bxf5 {[%emt 0:00:40]} 17. Qxf5 {[%emt 0:00:11]} Qd7 {[%emt 0:19:21]} 18. Qc2 {[%emt 0:01:10]} Rac8 {[%emt 0:00:35]} 19. Nf4 {[%emt 0:01:43]} Ne6 {[%emt 0:00:57]} 20. Nd3 {[%emt 0:01:08]} Qc7 {[%emt 0:02:43]} 21. Nfe5 {[%emt 0:02:59]} c5 {[%emt 0:00:21]} (21... Ng5 $15) 22. Qe2 {[%emt 0:03:25]} ({White should play} 22. Ng4 $11) 22... c4 $36 {[%emt 0:00:32][%mdl 2048] Black fights for an advantage.} 23. Ng4 {[%emt 0:06:22]} Qe7 {[%emt 0:15:32]} (23... cxd3 $2 24. Nxf6+ gxf6 25. Qg4+ Ng5 26. Rxc7 Rxc7 27. Qd1 $18) 24. Nxf6+ {[%emt 0:06:03]} ({Better is} 24. Nf4 $1 $11 Nxf4 25. gxf4) 24... Qxf6 $15 {[%emt 0:00:12]} 25. Ne5 {[%emt 0:01:09]} Qf5 {[%emt 0:05:49]} 26. Qd2 {[%emt 0:11:32]} Ng5 {[%emt 0:02:54]} 27. Qa5 {[%emt 0:01:47] [#]} Qe6 {[%emt 0:02:12] Black keeps a firm grip on the game.} 28. f4 {[%emt 0:02:49]} (28. Rfe1 $17) 28... Ne4 $19 {[%emt 0:00:15]} 29. f5 {[%emt 0:00:11]} (29. g4 $17) 29... Qd6 {[%emt 0:00:45] And now ...f6 would win.} 30. Rf3 {[%emt 0:07:05]} Ng5 {[%emt 0:15:16]} 31. Rf4 {[%emt 0:03:41] [#]} (31. Rff1 {keeps fighting.}) 31... f6 $1 {[%emt 0:00:38]} 32. Ng6 {[%emt 0:02:56]} Rxe3 {[%emt 0:00:16]} 33. Re1 {[%emt 0:05:27]} Rce8 {[%emt 0:00:46]} ({But not} 33... Rxg3 $2 34. Kf2 Rd3 35. Qxd5+ Qxd5 36. Ne7+ Kf7 37. Nxd5 $19) 34. Rxe3 {[%emt 0:01:24]} Rxe3 {[%emt 0:00:07]} 35. Qd2 {[%emt 0:00:23]} Re4 {[%emt 0:03:00]} 36. Rxe4 {[%emt 0:03:27]} Nxe4 {[%emt 0:00:29]} ({Inferior is} 36... dxe4 37. b3 $15) 37. Qf4 {[%emt 0:00:42]} Qxf4 {[%emt 0:00:35]} 38. Nxf4 {[%emt 0:00:16]} Nxg3 {[%emt 0:20:57]} 39. Nxd5 {[%emt 0:06:02]} Nxf5 {[%emt 0:00:00][%mdl 4096] Endgame KN-KN} 40. Nb6 {[%emt 0:00:00]} Nxd4 {[%emt 0:00:00]} 41. Nxc4 {[%emt 0:00:00]} Kf8 {[%emt 0:00:00]} 42. Kf2 {[%emt 0:00:00]} Ke7 {[%emt 0:00:00]} 43. Ke3 {[%emt 0:00:00]} Nf5+ {[%emt 0:00:00] Black is clearly winning.} 44. Kd3 {[%emt 0:00:00]} h5 {[%emt 0:00:00][%cal Bh6h5,Bh5h4][%mdl 32]} 45. Na5 {[%emt 0:00:00]} Nd6 {[%emt 0:00:00]} 46. Ke3 {[%emt 0:00:00]} g5 {[%emt 0:00:00]} 47. Kd4 {[%emt 0:00:57]} h4 {[%emt 0:00:00]} 48. Ke3 {[%emt 0:00:13]} (48. Nb3 $142 Ke6 49. Nc1) 48... Ke6 {[%emt 0:00:00]} 49. Nb3 {[%emt 0:00:30]} Kd5 {[%emt 0:00:00] Weighted Error Value: White=0.38/Black=0.16 (very precise)} 0-1

[Event "Cabo Verde Open 2022"]
[Site "Mindelo-S. Vicente"]
[Date "2022.04.30"]
[Round "8.7"]
[White "Babo, Miguel"]
[Black "Barros Gutierrez, Angel Luis"]
[Result "1-0"]
[ECO "A48"]
[WhiteElo "1789"]
[BlackElo "2040"]
[Annotator "TA"]
[PlyCount "143"]
[EventDate "2022.04.22"]
[EventType "swiss"]
[SourceTitle "playchess.com"]
[Source "ChessBase"]
[SourceQuality "1"]
[TimeControl "40/5400+30:1800+30"]

{[%evp 9,143,18,32,19,28,17,40,29,33,18,60,57,65,29,62,60,93,76,116,110,120,126,123,100,109,43,41,13,51,14,125,131,147,30,112,81,130,125,422,157,171,177,166,118,109,158,118,57,93,95,492,62,106,87,284,31,290,0,215,-41,194,184,625,629,630,620,629,608,600,583,942,933,855,325,820,821,766,451,451,445,554,570,674,549,809,700,714,660,701,692,675,609,678,703,702,702,694,677,695,694,651,651,645,632,430,202,149,128,657,657,824,477,822,809,29978,812,384,0,0,0,29981,29982,29982,29983,29983,29984,29984,29985,29985,29986,29986,29987,29989,29990,29990,29991]} 1. d4 {[%emt 0:00:04]} Nf6 {[%emt 0:05:23]} 2. Nf3 {[%emt 0:06:19]} g6 {[%emt 0:00:29]} 3. e3 {[%emt 0:00:12]} Bg7 {[%emt 0:00:45]} 4. b4 {[%emt 0:00:14]} d5 {[%emt 0:00:46]} 5. Bb2 {[%emt 0:00:26]} Nbd7 {[%emt 0:00:27]} 6. Be2 {[%emt 0:00:18] A48: 1 d4 Nf6 2 Nf3 g6: Torre, London and Colle Systems.} O-O {[%emt 0:00:45]} 7. O-O {[%emt 0:00:16]} Re8 {[%emt 0:01:00]} 8. Nbd2 {[%emt 0:00:28] White is slightly better.} c6 {[%emt 0:00:44] [#]} 9. a3 $146 {[%emt 0:00:54]} ({Predecessor:} 9. c4 e6 10. a4 Ne4 11. Nxe4 dxe4 12. Nd2 f5 13. Qb3 a5 14. c5 axb4 15. Nc4 Nf6 16. Nd6 Re7 17. Qxb4 {1-0 (31) Xiong,J (2709)-Murzin,V (2478) Chess.com INT 2021}) 9... Nf8 {[%emt 0:00:29]} 10. c4 {[%emt 0:02:55]} Be6 {[%emt 0:05:20]} 11. c5 {[%emt 0:02:53]} h6 {[%emt 0:01:38]} 12. h3 {[%emt 0:02:48]} g5 {[%emt 0:00:33]} 13. Ne5 {[%emt 0:03:49]} N6d7 {[%emt 0:02:23]} 14. f4 {[%emt 0:02:06] And now f5 would win.} f6 {[%emt 0:00:44]} 15. Nd3 {[%emt 0:07:06] 0x0.00192a3c43d9dp-1022s more active pieces.} Bf7 {[%emt 0:01:08]} 16. fxg5 {[%emt 0:01:51]} hxg5 {[%emt 0:06:18]} 17. Nf3 {[%emt 0:05:46]} (17. Bh5 $16) 17... Ng6 {[%emt 0:00:52]} 18. Bc3 {[%emt 0:02:08]} Bh6 {[%emt 0:01:12][%cal Og5g4]} 19. Nh2 {[%emt 0:02:26]} Kg7 {[%emt 0:01:55]} (19... e6 $11 {remains equal.}) 20. Ng4 $36 {[%emt 0:04:41][%cal Od3e5][%mdl 2048] White is on the roll.} Rh8 {[%emt 0:00:47]} 21. Ndf2 {[%emt 0:03:58]} (21. b5 $1 $16) 21... Qc7 {[%emt 0:00:52]} (21... f5 $11) 22. e4 {[%emt 0:02:52]} Qg3 {[%emt 0:01:38]} ({Black should try} 22... dxe4 23. Nxe4 (23. Nxh6 Rxh6 24. Bg4 Qg3 $11) 23... Bd5) 23. Bf3 {[%emt 0:08:46][%cal Oe4e5] e5! is the strong threat.} e6 $2 {[%emt 0:09:34][%mdl 8192]} (23... Nh4 $16) 24. Bd2 $2 {[%emt 0:07:32]} (24. e5 $1 $18 {and the rest is easy.}) 24... f5 {[%emt 0:00:42] [#]} 25. Nh1 $1 {[%emt 0:02:36]} Qc7 {[%emt 0:01:02]} (25... Qh4 $2 26. exf5 exf5 27. Be1 $1 fxg4 28. Bxg4 Qxg4 29. hxg4 $18) 26. exf5 {[%emt 0:00:43]} (26. Nxh6 $18 Kxh6 27. e5) 26... exf5 {[%emt 0:00:39]} 27. Nxh6 {[%emt 0:00:42]} Kxh6 {[%emt 0:04:28]} 28. Qc2 {[%emt 0:04:22]} (28. Bh5 $16 Be6 29. Qe2) 28... Be6 {[%emt 0:01:57]} (28... Nh4 $2 29. Bg4 $1 Bg6 30. Bxf5 (30. Bxg5+ Kxg5 31. Rae1 Raf8 $11) 30... Nxf5 31. Rxf5 $18) 29. Rae1 {[%emt 0:02:04]} Rae8 {[%emt 0:00:22][%mdl 8192] [#]} (29... Ndf8 $16 {is more resistant.}) 30. Nf2 $2 {[%emt 0:03:51]} (30. Rxe6 $1 $18 {[%mdl 512]} Rxe6 31. Qxf5) 30... Nh4 {[%emt 0:01:30]} 31. Nd3 {[%emt 0:03:27]} Kg6 $2 {[%emt 0:05:37] [#]} (31... Nf6 $16) 32. Ne5+ $2 {[%emt 0:01:54]} (32. Bg4 $1 $18 {[%mdl 512]}) 32... Kf6 {[%emt 0:01:28][%mdl 8192]} (32... Nxe5 $14 33. Rxe5 Bd7) 33. Nxd7+ $2 {[%emt 0:03:14]} (33. Bg4 $18 f4 34. g3 Nxe5 35. gxh4 (35. dxe5+ Kg7 $18) (35. Rxe5 Bxg4 36. Bxf4 gxf4 $18) 35... Nxg4 36. hxg5+ (36. hxg4 Qh7 $16) 36... Ke7 37. Bxf4) 33... Qxd7 $2 {[%emt 0:02:01] [#]} (33... Bxd7 $11 {and Black stays safe.} 34. Rxe8 Rxe8) 34. Re5 $2 {[%emt 0:03:17] Really sharp!} (34. Bg4 $1 $18) 34... Qh7 $2 {[%emt 0:04:23] [#]} (34... Ng6 $15 {stays ahead.}) 35. Bg4 $1 $18 {[%emt 0:01:16]} f4 {[%emt 0:02:37]} (35... Ke7) 36. Qxh7 {[%emt 0:00:58]} ({Less strong is} 36. Qd1 Ng6 $14) 36... Rxh7 {[%emt 0:00:42] [#]} 37. Bxf4 $1 {[%emt 0:03:26][%mdl 512]} gxf4 {[%emt 0:03:01]} 38. Rxf4+ {[%emt 0:00:15]} Kg7 {[%emt 0:03:14]} 39. Bxe6 {[%emt 0:00:55]} Ng6 {[%emt 0:04:33]} 40. Rf7+ {[%emt 0:00:00]} Kh6 {[%emt 0:00:00]} 41. Rxh7+ {[%emt 0:04:18]} Kxh7 {[%emt 0:01:05][%mdl 4096] Endgame KRB-KRN} 42. Bf5 {[%emt 0:09:10]} Rf8 {[%emt 0:00:35]} 43. Bxg6+ {[%emt 0:00:27]} Kxg6 {[%emt 0:00:22] KR-KR} 44. Re7 {[%emt 0:00:20]} Kg5 {[%emt 0:05:47]} 45. Rxb7 {[%emt 0:00:34]} Kf4 {[%emt 0:00:58]} 46. Re7 {[%emt 0:00:50]} Kg3 {[%emt 0:02:06]} 47. Re3+ {[%emt 0:00:48]} Kh4 {[%emt 0:00:44]} 48. a4 {[%emt 0:00:44]} a6 {[%emt 0:00:36]} 49. Rf3 {[%emt 0:03:59]} Rb8 {[%emt 0:00:56]} 50. Rb3 {[%emt 0:00:41]} Kg5 {[%emt 0:01:12]} 51. b5 {[%emt 0:01:05]} cxb5 {[%emt 0:03:40]} 52. axb5 {[%emt 0:00:38]} axb5 {[%emt 0:00:13]} 53. c6 {[%emt 0:00:28]} b4 {[%emt 0:00:54]} 54. c7 {[%emt 0:01:10]} Rc8 {[%emt 0:00:40]} 55. Rxb4 {[%emt 0:00:10]} Rxc7 {[%emt 0:00:16]} 56. Rb5 {[%emt 0:00:43]} Rd7 {[%emt 0:00:36]} 57. Rb3 {[%emt 0:02:11]} (57. Rb8 $142) 57... Kf4 {[%emt 0:02:33]} 58. Rb1 {[%emt 0:01:12] Strongly threatening Re1.} Kg3 $2 {[%emt 0:01:15][%mdl 8192]} (58... Rc7 $16 59. Re1 Rc4) 59. Rf1 {[%emt 0:01:05]} Re7 {[%emt 0:01:41]} 60. Rf3+ {[%emt 0:00:39]} Kh4 {[%emt 0:00:09]} 61. Kf2 {[%emt 0:01:03]} Re4 {[%emt 0:01:54]} 62. g3+ {[%emt 0:03:18]} (62. Rf5 $142 Re6 63. Kf3 Rg6 64. g4 Rh6 65. Kg2 Rh7 66. Rxd5 Rh6 67. Rf5) 62... Kxh3 {[%emt 0:01:47]} 63. Rf4 $2 {[%emt 0:00:05]} (63. Rf5 $18 {Re5 would kill now.} Kg4 64. Rxd5) 63... Rxf4+ $11 {[%emt 0:02:37]} 64. gxf4 {[%emt 0:00:16][%cal Bg3f4,Bf4f5,Bf5f6][%mdl 32] White wants to mate with f5. KPP-KP} Kh4 $2 {[%emt 0:02:30][%mdl 8192]} (64... Kg4 $11) 65. Kf3 {[%emt 0:00:16] White mates.} Kh5 {[%emt 0:00:43]} 66. Kg3 {[%emt 0:00:04]} Kg6 {[%emt 0:00:38]} 67. Kg4 {[%emt 0:00:06]} Kf6 {[%emt 0:00:45]} 68. f5 {[%emt 0:00:41]} Kg7 {[%emt 0:00:32]} 69. Kg5 {[%emt 0:00:10]} Kf7 {[%emt 0:00:34]} 70. f6 {[%emt 0:00:20]} Kg8 {[%emt 0:00:49]} 71. Kg6 {[%emt 0:01:15]} Kh8 {[%emt 0:00:27]} 72. Kf7 {[%emt 0:00:19] Weighted Error Value: White=0.69/Black=1.08} 1-0

[Event "Cabo Verde Open 2022"]
[Site "Mindelo-S. Vicente"]
[Date "2022.04.30"]
[Round "8.8"]
[White "Pereira, Eder Marcio"]
[Black "Rodriguez Guevara, Celia M."]
[Result "0-1"]
[ECO "B13"]
[WhiteElo "1728"]
[BlackElo "1849"]
[Annotator "NA RC COMBH"]
[PlyCount "93"]
[EventDate "2022.04.22"]
[EventType "swiss"]
[SourceTitle "playchess.com"]
[Source "ChessBase"]
[SourceQuality "1"]
[TimeControl "40/5400+30:1800+30"]

1. d4 {[%emt 0:03:06]} d5 {[%emt 0:00:31]} 2. Bf4 {[%emt 0:00:59]} c5 {[%emt 0:00:36]} 3. e3 {[%emt 0:00:09]} cxd4 {[%emt 0:02:46]} 4. exd4 {[%emt 0:03:07]} Nc6 {[%emt 0:01:44]} 5. Nf3 {[%emt 0:00:51]} Nf6 {[%emt 0:02:34]} 6. c3 {[%emt 0:07:06]} Bf5 {[%emt 0:01:43]} 7. Bd3 {[%emt 0:01:53]} Bxd3 {[%emt 0:04:13]} 8. Qxd3 {[%emt 0:00:12]} e6 {[%emt 0:02:38]} 9. O-O {[%emt 0:06:10]} Be7 {[%emt 0:06:25]} 10. h3 {[%emt 0:10:05]} O-O {[%emt 0:01:27]} 11. Nbd2 {[%emt 0:00:17]} Rc8 {[%emt 0:06:13]} 12. Rae1 {[%emt 0:00:34]} a6 {[%emt 0:05:20]} 13. a4 {[%emt 0:10:05]} Nh5 {[%emt 0:29:54]} 14. Bh2 {[%emt 0:02:45]} Bd6 {[%emt 0:00:21]} 15. Bxd6 {[%emt 0:17:47]} Qxd6 {[%emt 0:00:10]} 16. Ng5 {[%emt 0:00:21]} Nf6 {[%emt 0:05:28]} 17. Ngf3 {[%emt 0:08:15]} Na5 {[%emt 0:02:53]} 18. Ne5 {[%emt 0:03:03]} Qb6 {[%emt 0:07:37]} 19. b4 {[%emt 0:05:47]} Nc6 {[%emt 0:01:00]} 20. f4 {[%emt 0:00:15]} Ne7 {[%emt 0:03:45]} 21. g4 {[%emt 0:05:34]} Qc7 {[%emt 0:03:47]} 22. Re3 {[%emt 0:00:16]} g6 {[%emt 0:03:41]} 23. h4 {[%emt 0:04:39]} h5 {[%emt 0:00:25]} 24. Rg3 {[%emt 0:01:15]} Kh7 {[%emt 0:02:02]} 25. gxh5 {[%emt 0:02:47]} Nxh5 {[%emt 0:00:03]} 26. Rg5 {[%emt 0:00:56]} Nf5 {[%emt 0:00:05]} 27. Qe2 {[%emt 0:03:18]} Nhg3 {[%emt 0:01:23]} 28. Qg4 {[%emt 0:00:27]} Rg8 {[%emt 0:01:40]} 29. Rf3 {[%emt 0:01:16]} Nh5 {[%emt 0:01:40]} 30. Kf2 {[%emt 0:00:35]} Nf6 {[%emt 0:01:04]} 31. Qh3 {[%emt 0:00:46]} Nh5 {[%emt 0:00:15]} 32. Rg4 {[%emt 0:01:14]} Rg7 {[%emt 0:00:03]} 33. Nb3 {[%emt 0:00:32]} b6 {[%emt 0:00:06]} 34. Qf1 {[%emt 0:00:26]} a5 {[%emt 0:00:36]} 35. bxa5 {[%emt 0:00:22]} bxa5 {[%emt 0:00:01]} 36. Nc5 {[%emt 0:00:20]} Rb8 {[%emt 0:01:46]} 37. Qc1 {[%emt 0:00:34]} Qb6 {[%emt 0:00:10]} 38. Ned3 {[%emt 0:00:33]} Nf6 {[%emt 0:00:37]} 39. Kg1 {[%emt 0:00:45]} Nxg4 {[%emt 0:00:29]} 40. Nd7 {[%emt 0:00:00]} Qb1 {[%emt 0:00:00]} 41. Nxb8 {[%emt 0:03:13]} Qxb8 {[%emt 0:00:49]} 42. Kg2 {[%emt 0:03:09]} Qb3 {[%emt 0:04:23]} 43. Kh3 {[%emt 0:05:09]} Nf6 {[%emt 0:02:26]} 44. Nc5 {[%emt 0:02:19]} Qa2 {[%emt 0:01:00]} 45. Qf1 {[%emt 0:02:07]} Ne4 {[%emt 0:02:26]} 46. Qb5 {[%emt 0:04:08]} Qa1 {[%emt 0:01:52]} 47. Qf1 {[%emt 0:03:48]} 0-1